Cogmind - Beta 13 @@@ ROGUE MODE // 2024.04.05 @ 22:00:31 Player: Chickoo Result: Destroyed by H-61 Shepherd with Heavy Assault Cannon Performance ------------- Evolutions (2) 1000 Regions Visited (3) 600 Robots Destroyed (65) 325 Value Destroyed (1381) 1381 Prototype IDs (3) 60 Alien Tech Used (0) 0 Bonus (0) 0 TOTAL SCORE: 3366 Bonus ------- None Cogmind --------- Core Integrity 0/550 Matter 290/300 Energy 80/100 System Corruption 2% Temperature Cool (0) Movement Flying (105) Ox1 Location -8/Materials Parts ------- > --- POWER (1) -------- (None) > --- PROPULSION (4) --- Improved VTOL Module > --- UTILITY (4) ------ Machine Analyzer Core Analyzer > --- WEAPON (2) ------- Flak Cannon > --- INVENTORY (5) ---- Advanced Beam Cannon Peak State ------------ > --- POWER ------------ Improved Ion Engine > --- PROPULSION ------- VTOL Module VTOL Module Improved VTOL Module Improved VTOL Module > --- UTILITY ---------- Machine Analyzer Improved Terrain Scanner Improved Terrain Scan Processor Hacking Suite > --- WEAPON ----------- Great Maul Blade Saw > --- INVENTORY -------- VTOL Module VTOL Module VTOL Module Medium Storage Unit EM Pulse Cannon [Rating: 33] Favorites ----------- Power Improved Ion Engine Engine Improved Ion Engine Propulsion Light Treads Treads Light Treads Leg Aluminum Leg Wheel Wheel Flight Unit Improved VTOL Module Utility Medium Storage Unit Device Terrain Scanner Storage Medium Storage Unit Processor Improved Terrain Scan Processor Hackware Hacking Suite Protection Light Armor Plating Weapon Beam Rifle Energy Gun Beam Rifle Energy Cannon Light EM Pulse Cannon Ballistic Gun Light Assault Rifle Ballistic Cannon Flak Cannon Impact Weapon Heavy Hammer Slashing Weapon Blade Saw Special Melee Weapon Datajack Build | -11 -10 -9 -8 ------- Run | Yrd Mat Mat Mat Slots Evolved 4 | . . 2 2 Power . | . . . . Propulsion 2 | . . . 2 Utility 2 | . . 2 . Weapon . | . . . . Parts Attached 80 | 6 18 20 36 Power 8 | 1 3 2 2 Engine 8 | 1 3 2 2 Core . | . . . . Reactor . | . . . . Propulsion 24 | 2 6 5 11 Treads 11 | 2 2 3 4 Leg 2 | . . 2 . Wheel 3 | . 3 . . Hover . | . . . . Flight 8 | . 1 . 7 Utility 23 | 1 3 9 10 Device 5 | . 2 1 2 Storage 3 | 1 1 1 . Processor 3 | . . . 3 Hackware 1 | . . . 1 Protection 11 | . . 7 4 Artifact . | . . . . Weapon 25 | 2 6 4 13 Energy Gun 8 | 2 2 2 2 Energy Cannon 3 | . 1 . 2 Ballistic Gun 3 | . 1 1 1 Ballistic Cannon 3 | . . . 3 Launcher . | . . . . Special Weapon . | . . . . Impact Weapon 4 | . 1 1 2 Slashing Weapon 3 | . . . 3 Piercing Weapon . | . . . . Special Melee Weapon 1 | . 1 . . Unidentified Prototypes 1 | . . . 1 Parts Lost 34 | . 2 8 24 Power 6 | . 1 2 3 Propulsion 12 | . 1 2 9 Utility 10 | . . 2 8 Weapon 6 | . . 2 4 Highest Loss Streak 11 | . 1 7 11 To Critical Strikes . | . . . . Average Slot Usage (%) 87 | . 91 87 82 Engine 10 | . 13 9 6 Treads 12 | . 9 7 18 Leg 4 | . . 9 3 Wheel 6 | . 15 3 . Flight 2 | . . . 6 Device 8 | . 8 7 8 Storage 10 | . 14 11 7 Processor 1 | . . . 4 Protection 7 | . . 18 6 Energy Gun 11 | . 13 14 8 Energy Cannon 1 | . 2 . . Ballistic Gun 2 | . 5 . . Impact Weapon 2 | . 1 3 3 Special Melee Weapon 2 | . 6 1 . Naked Turns . | . . . . Heaviest Build 97 | 13 89 97 32 Greatest Support 80 | 40 40 43 80 Greatest Overweight (x) 29 | 2 8 29 5 Average Overweight (x) 1 | . 3 1 . Largest Inventory Capacity 25 | 8 25 25 10 Average Capacity 14 | 7 18 15 9 Most Carried 14 | 4 14 13 10 Average Carried 9 | 2 10 10 8 Final Capacity 25 | 8 25 10 5 Final Carried 13 | 3 13 10 1 Class Distribution -------------------- 53% | Scavenger-Mutant 42% | Mutant Dominant Class ---------------- Mutant | -10/Materials Scavenger-Mutant | -9/Materials Scavenger-Mutant | -8/Materials Resources | -11 -10 -9 -8 ----------- Run | Yrd Mat Mat Mat Matter Collected 1012 | 260 178 173 401 Remotely . | . . . . Salvage Created 2194 | 168 496 611 919 Parts 105 | 12 26 33 34 Haulers Intercepted 4 | . 1 1 2 Recyclers Shooed 5 | 2 1 . 2 Parts Field Recycled . | . . . . Retrieved Matter . | . . . . Parts Self-Destructed . | . . . . Prevented . | . . . . Kills | -11 -10 -9 -8 ------- Run | Yrd Mat Mat Mat Combat Hostiles Destroyed 39 | . 10 12 17 Melee 4 | . . 1 3 Guns 24 | . 8 9 7 Cannons 4 | . 1 . 3 Classes Destroyed 13 | 2 7 2 2 Worker 3 | . 1 1 1 Builder 5 | . 2 1 2 Tunneler 4 | 4 . . . Hauler 4 | . 1 1 2 Recycler 4 | 1 1 . 2 Mechanic 1 | . . . 1 Operator 1 | . 1 . . Watcher 4 | . 2 1 1 Swarmer 15 | . 6 3 6 Grunt 13 | . 4 5 4 Duelist 1 | . . 1 . Sentry 8 | . . 3 5 Specialist 2 | . . . 2 Best Kill Streak 7 | 3 4 7 4 Combat Bots Only 6 | . 3 6 3 Max Kills in Single Turn 2 | 1 1 2 2 Gunslinging 1 | . . 1 . Exploded . | . . . . Melee 1 | . . 1 1 Uniques/NPCs Destroyed . | . . . . Combat | -11 -10 -9 -8 -------- Run | Yrd Mat Mat Mat Hostile Shots Fired 417 | . 76 103 238 Missed 121 | . 23 28 70 Damage Taken 4160 | . 582 1102 2476 Core 1021 | . 139 291 591 Absorbed by Shields . | . . . . Redirected to Shielding 115 | . . 5 110 Regen/Repaired (Parts) 152 | . 8 75 69 Core Remaining (%) 57 | 100 44 27 . Volleys Fired 137 | 14 50 27 46 Largest 2 | 2 2 2 2 Hottest 112 | 80 96 101 112 Shots Fired 238 | 19 91 43 85 Gun 207 | 19 78 43 67 Cannon 31 | . 13 . 18 Launcher . | . . . . Special . | . . . . Kinetic 49 | . 18 4 27 Thermal 122 | 14 41 16 51 Explosive . | . . . . Electromagnetic 67 | 5 32 23 7 Robot Hit Streak 18 | 3 12 8 18 Robot Miss Streak 9 | 3 3 4 9 Penetration Max . | . . . . Secondary Targets 1 | . . 1 . Max Gunslinging Chain 1 | . . 1 . Shots Hit Robots 203 | 10 63 34 96 Core Hits 80 | 6 22 17 35 Critical Kills 2 | . . 1 1 Critical Parts Destroyed 7 | . 1 . 6 Critical Strikes 11 | . 1 1 9 Burn 1 | . . . 1 Corrupt 1 | . . . 1 Smash 9 | . 1 1 7 Melee Attacks 72 | . 9 13 50 Impact 56 | . 3 13 40 Slashing 10 | . . . 10 Piercing . | . . . . Sneak Attacks 14 | . 6 3 5 Combat Hostiles . | . . . . Follow-up Attacks 4 | . . . 4 Damage Inflicted 4479 | 130 891 864 2594 Guns 1750 | 130 513 354 753 Cannons 350 | . 180 . 170 Explosions 80 | . 38 42 . Melee 2245 | . 142 468 1635 Ramming 54 | . 18 . 36 Kinetic 461 | . 87 25 349 Thermal 1085 | 75 354 174 482 Explosive . | . . . . Electromagnetic 634 | 55 290 197 92 Impact 2115 | . 142 468 1505 Slashing 130 | . . . 130 Piercing . | . . . . Highest Corruption 2 | . . 2 2 Average Corruption 2 | . . 2 2 Corruption Purged . | . . . . Corruption Blocked . | . . . . Effects 14 | . . 2 12 Message Errors 5 | . . 1 4 Matter Fused 1 | . . . 1 Heat Flow Errors 1 | . . . 1 Energy Discharges 4 | . . 1 3 Data Loss (minor) 1 | . . . 1 Weapon Failures 2 | . . . 2 Overload Shots . | . . . . Overflow Damage 698 | . 90 162 446 Projectiles . | . . . . Explosions . | . . . . Melee 698 | . 90 162 446 Knockbacks 17 | . . 4 13 Impact 10 | . . 4 6 Kinetic 7 | . . . 7 Secondary . | . . . . Self-Inflicted Damage 64 | . 47 . 17 Shots 1 | . 1 . . Rammed 3 | . 1 . 2 Targets Rammed 3 | . 1 . 2 Kicked . | . . . . Crushed . | . . . . Highest Temperature 407 | 90 357 407 292 Average Temperature 110 | 46 104 167 85 Received Heat Transfer 1299 | . 171 372 756 Effects 7 | . 1 3 3 Shutdowns 2 | . 1 1 . Energy Bleed 2 | . . 2 . Interference 3 | . . . 3 Siege Activations . | . . . . Robots Corrupted 2 | . 1 1 . Combat Hostiles 2 | . 1 1 . Parts Fried 27 | . 7 9 11 Impact Corruptions 27 | . 4 7 16 Robots Melted . | . . . . Combat Hostiles . | . . . . Parts Melted 5 | . . . 5 Heat Transferred 2628 | 175 775 383 1295 Parts Sabotaged . | . . . . Parts Stolen . | . . . . Parts Stripped . | . . . . Power Chain Reactions 2 | . 1 1 . Alert | -11 -10 -9 -8 ------- Run | Yrd Mat Mat Mat Peak Influence 251 | 25 251 179 240 Initial 16 | . 16 5 11 Average 88 | 10 83 95 99 Maximum Alert Level 1 | . 1 . 1 Low Security (%) 90 | 100 84 100 88 Level 1 9 | . 15 . 11 Level 2 . | . . . . Level 3 . | . . . . Level 4 . | . . . . Level 5 . | . . . . High Security . | . . . . Max Security . | . . . . Squads Dispatched 8 | . 2 1 5 Investigation 3 | . 1 1 1 Extermination . | . . . . Reinforcement 5 | . 1 . 4 Assault . | . . . . Garrison . | . . . . Intercept . | . . . . Searches Triggered . | . . . . Construction Impeded 1 | . . . 1 Haulers Reinforced . | . . . . Active Scanning Responses . | . . . . Cargo Convoy Interrupts . | . . . . Stealth | -11 -10 -9 -8 --------- Run | Yrd Mat Mat Mat Distress Signals 8 | . 1 2 5 Communications Jammed . | . . . . Distress Signals . | . . . . Times Spotted 65 | . 16 15 34 Peak Tracking Total 7 | . 4 6 7 Tactical Retreats 5 | . . . 5 Traps | -11 -10 -9 -8 ------- Run | Yrd Mat Mat Mat Traps Triggered 2 | . . 1 1 Indirectly . | . . . . Trap Hack Attempts 33 | . 33 . . Triggered 1 | . 1 . . Disarmed . | . . . . Reprogrammed 2 | . 2 . . Reused 2 | . 2 . . Traps Extracted . | . . . . Installed . | . . . . Triggered 2 | . 2 . . Machines | -11 -10 -9 -8 ---------- Run | Yrd Mat Mat Mat Machines Disabled . | . . . . Max in Single Turn . | . . . . Machines Repaired . | . . . . Machines Dismantled . | . . . . Machines Sabotaged . | . . . . Overloaded Fab Kills . | . . . . Hacking | -11 -10 -9 -8 --------- Run | Yrd Mat Mat Mat Machines Accessed 14 | . 3 5 6 Terminals 9 | . 1 3 5 Fabricators . | . . . . Repair Stations 3 | . 1 1 1 Recycling Units 2 | . 1 1 . Scanalyzers . | . . . . Garrison Access . | . . . . Total Hacks 34 | . 7 10 17 Successful 24 | . 7 7 10 Failed 10 | . . 3 7 Catastrophic 3 | . . 1 2 Database Lockouts . | . . . . Manual 8 | . 2 1 5 Terminals 24 | . 3 6 15 Fabricators . | . . . . Repair Stations 6 | . 2 2 2 Recycling Units 4 | . 2 2 . Scanalyzers . | . . . . Garrison Access . | . . . . Terminal Hacks 14 | . 3 3 8 Record 2 | . . . 2 Robot Analysis 1 | . . . 1 Prototype ID Bank 1 | . 1 . . Terminal Index 2 | . . 1 1 Alert Level 1 | . . . 1 Locate Traps 1 | . . . 1 Recall Reinforcements 1 | . 1 . . Hauler Manifests 3 | . 1 1 1 Registered Components 1 | . . 1 . Zone Layout 1 | . . . 1 Fabricator Hacks . | . . . . Repair Station Hacks 6 | . 2 2 2 Scan Component 3 | . 1 1 1 Repair 3 | . 1 1 1 Recycling Unit Hacks 2 | . 1 1 . Report Inventory 2 | . 1 1 . Scanalyzer . | . . . . Garrison Access Hacks . | . . . . Unauthorized Hacks 2 | . 1 1 . Terminals . | . . . . Fabricators . | . . . . Repair Stations . | . . . . Recycling Units 2 | . 1 1 . Reject 2 | . 1 1 . Scanalyzers . | . . . . Garrison Access . | . . . . Data Cores Recovered 1 | . 1 . . Used 1 | . 1 . . Hacking Detections 10 | . 2 3 5 Full Trace Events 3 | . 1 1 1 Feedback Events . | . . . . Feedback Blocked . | . . . . Robot Schematics Acquired . | . . . . Robots Built . | . . . . Authchips . | . . . . Time . | . . . . Total Robot Build Rating . | . . . . Part Schematics Acquired . | . . . . Parts Built . | . . . . Authchips . | . . . . Time . | . . . . Total Part Build Rating . | . . . . Parts Repaired 3 | . 1 1 1 Time 84 | . 26 26 32 Parts Recycled . | . . . . Recycled Matter . | . . . . Retrieved Matter . | . . . . Retrieved Components . | . . . . Parts Scanalyzed . | . . . . Part Schematics Acquired . | . . . . Parts Damaged . | . . . . Bothacking | -11 -10 -9 -8 ------------ Run | Yrd Mat Mat Mat Used RIF Installer . | . . . . Robots Hacked 2 | . 2 . . Non-combat 2 | . 2 . . Combat . | . . . . Robot Hacks Applied 4 | . 4 . . parse_system 1 | . 1 . . no_distress 2 | . 2 . . check_alert 1 | . 1 . . Relay Couplers Released . | . . . . Fabnet Peak Effective % . | . . . . Robots Rewired . | . . . . Allies Hacked . | . . . . Hacks Repelled . | . . . . Allies | -11 -10 -9 -8 -------- Run | Yrd Mat Mat Mat Total Allies . | . . . . Largest Group . | . . . . Highest-Rated Group . | . . . . Highest-Rated Ally . | . . . . Total Orders . | . . . . Ally Attacks . | . . . . Total Damage . | . . . . Kills . | . . . . Allies Corrupted . | . . . . Allies Melted . | . . . . Intel | -11 -10 -9 -8 ------- Run | Yrd Mat Mat Mat Robot Analysis Total 1 | . . . 1 Derelict Logs Recovered . | . . . . Drone Launches . | . . . . Drone Recoveries . | . . . . Exploration | -11 -10 -9 -8 ------------- Run | Yrd Mat Mat Mat Turns Passed 3148 | 135 1098 887 1028 Spaces Moved 1466 | 58 552 385 471 Core 32 | 15 . 3 14 Treads 572 | 43 152 103 274 Legs 267 | . . 188 79 Wheels 491 | . 400 91 . Hover . | . . . . Flight 104 | . . . 104 Fastest Speed 26 | 50 95 140 26 Average Speed 156 | 150 148 192 136 Slowest Speed 1500 | 160 200 1500 300 Overloaded Moves . | . . . . Propulsion Burnouts . | . . . . Robots Hopped . | . . . . Cave-ins Triggered . | . . . . Exploration Rate (%) 33 | 4 57 30 44 Regions Visited 3 Branch Regions . Pre-discovered Areas . | . . . . Known Exits Taken . | . . . . Unknown Exits Taken 3 | 1 1 1 . Scrap Searched . | . . . . Spaces Dug 1 | . . . 1 Terrain Destroyed 10 | . 6 3 1 Melee 1 | . . . 1 Projectile . | . . . . AOE 9 | . 6 3 . Terrain Rammed . | . . . . Walls Destroyed . | . . . . Machines Disabled . | . . . . Actions | -11 -10 -9 -8 --------- Run | Yrd Mat Mat Mat Total 1958 | 86 735 467 670 Wait 104 | . 51 4 49 Move 1463 | 57 551 384 471 Hop . | . . . . Pick Up 40 | 8 13 10 9 Fast Attach 29 | 2 7 4 16 Attach 21 | 4 2 8 7 Detach . | . . . . Swap 30 | . 9 8 13 Drop 32 | 1 9 9 13 Fire 137 | 14 50 27 46 Melee 66 | . 9 13 44 Ram 3 | . 1 . 2 Kick . | . . . . Crush . | . . . . Escape Stasis . | . . . . Rewire . | . . . . Trap 33 | . 33 . . Miscellaneous . | . . . . Route ------- -11/Scrapyard -10/Materials (discovered 2 exits: *Mat / [*Min]) -9/Materials -8/Materials (discovered 1 exit: [Fac]) History --------- Turn | Location | Event 20 | -11/Scrapyard | Discovered new exit (range 14) 136 | -11/Scrapyard | Entered Materials 313 | -10/Materials | Build established: Mutant 434 | -10/Materials | Discovered new exit (range 15) 724 | -10/Materials | Discovered new exit (range 12) 841 | -10/Materials | Core integrity fell below 50% 1116 | -10/Materials | Repaired Sensor Array 1234 | -10/Materials | Entered another Materials area 1234 | -9/Materials | Evolved 2 slots: Utility x2 1449 | -9/Materials | Core integrity fell below 50% 1459 | -9/Materials | Lost 7 parts (2p2n1u2w) 1805 | -9/Materials | Repaired Lgt. Armor Plating 1806 | -9/Materials | Build established: Scavenger-Mutant 2075 | -9/Materials | Discovered new exit (range 16) 2121 | -9/Materials | Entered another Materials area 2121 | -8/Materials | Evolved 2 slots: Propulsion x2 2223 | -8/Materials | Repaired Hvy. Hammer? 2383 | -8/Materials | Lost 8 parts (1p2n3u2w) 2898 | -8/Materials | Discovered new exit (range 16) 3016 | -8/Materials | Core integrity fell below 50% 3139 | -8/Materials | Core integrity fell below 20% 3149 | -8/Materials | Destroyed by H-61 Shepherd with Heavy Assault Cannon Last Messages --------------- 03131_ Slug penetrates X-57 Shotgunner. 03131_ X-57 Shotgunner knocked back. 03132_ VTOL Module destroyed. 03133_ G-47 Trooper destroyed. 03133_ Slug penetrates Wall. 03135_ Lgt. Ion Engine destroyed. 03136_ Acquired 21 matter. 03140_ Acquired 10 matter. 03142_ VTOL Module destroyed. 03143_ X-57 Shotgunner suffers critical hit (Smash). 03143_ Destroyed Nuclear Core. 03143_ X-57 Shotgunner system corrupted by crushing effect. 03147_ VTOL Module destroyed. 03147_ Great Maul destroyed. 03147_ Penetrated by Slug. 03147_ Imp. VTOL Module destroyed. 03147_ U-05 Engineer builds a Wall. 03149_ Penetrated by Slug. Map ----- +----------------------------------------------------+ | ??????# # ???# + ########?#?????????? | | ??????# # ? ?# [[[ # #??##### ??????????? | | ??????# # # [[[ # #?##?#?#? ??"??????? | | ??????# # ? ?# [[ # ####?? # ? ??"?????? | | ????? # #?""" ######?# ###??< ??? ?"??????? | | ??????+ #?"""??####### ###? #???"???????? | | ?? ???# # """?#####??# ##?#? ?+??????"????? | | #?????# # ? ###?#### ![##?# ??????"???????? | | ####### # """ #####??#= =%###? ?????"??????? | | # "R? ########+## #?##?? # ??????????? | | # """?## =% # #?## ? ??###???#???? | | # ??# """ # #### # ??? ??????? | | ####### ###"####=""" ! + #?#?? ?? ? ? ??????? | | ###???# %!*%#%"%"%! # ##?? ? ? ?? ??????? | | ##??# =!%+%% %! # ###? ? #?"?? ??????? | | #???# %#= "%% # #??# ?????" ??????? | | #???####### #!"" % # #### ? ? "?? ??????? | | #?#???????# # """ # ##??#??#?? ??????? | | #????????## # / ##???? ? ??????????? | | ! ##?#?####?# %########## ##??##?????????????? | | #???#?#?#?# # # ##?#?#?????????????? | | #????##???# # """ # #?#??#????#????????? | | #??#???#??# # """ !#%#??##? ###?????????? | | ########????# # """ # #### #?????????? | | #?????# # % #u #?????????? | | #????##### # ""%@x% % #???? | | #??#????## #! ! "" Hx u ####??????? | | #?????#?## # S" ###### #?????????? | | #?#?###??# # #?####?#+###?????????? | | +######???????## ###########??##??? ??????????? | | ##??#??????## ##?#?????#?#??#????? #????????? | | ############ % ##############???""??????????? | | T %T +???"""?????????? | | ############ ######## #####????S"?????????? | | #?????????###+######### #???#???????????????? | | #?????????# # # #####???????????????? | | #??#??????# """# # ???????????????? | | #?????????# """# # ????????????? | | #????#????# """# + ???????????? | | #?????????# # "" # ??????????? | | #?????????# # Y" # ??????????? | | #??#??????#+###### "" + ??????????? | | #?????#???# #????# # ???????????? | | ########### ########### ???????????? | | ^^ / ^ ^ ! #????????????? | | ########## ^^ ^ #????????????? | | #??????#"" """ """ ^!! #????????????? | | #??????#"T """ """ !! #????????????? | | #??????#"" """ """ ! ! ] #????????????? | | #??????### #????????????? | +----------------------------------------------------+ Best States ------------- Heat Dissipation 31 Energy Generation 12 Energy Capacity 265 Matter Stores 300 Matter Capacity 300 Sight Range 16 Robot Scan Range 15 Terrain Scan Range 16 Terrain Scan Density 110 Armor Coverage 300 Core Shielding 20 Propulsion Shielding 66 Evasion (%) 64 Core Analysis 6 Recoil Reduction 4 Offensive Hacking 10 Item Schematics ----------------- None Robot Schematics ------------------ None Fabricated ------------ Nothing Alien Tech Used ----------------- None Achievements -------------- Dynamic Key Hehehe Hey, That's Mine! Challenges ------------ None Game ------ Seed chickoon Manual? 1 Play Time 00:52:52 Cumulative 9.8 hours Start 2024.04.05 @ 21:06:41 End 2024.04.05 @ 22:00:31 Sessions 1 Manual Loads 0 Difficulty Rogue Special Mode None Game No. 9 Rogue 9 Adventurer 0 Explorer 0 Win Type - Total 0 Types 0/0/0/0/0/0/0/0/0 Lore% 14 Gallery% 16 Achievement% 17 Wizard Run 0 Options --------- Layout 1 ASCII 0 Keyboard 0 Movement Mouse Keybinds 0 Fullscreen 1 Font 32/SmallcapsGlow Map View 50x35 Zoom Use 0% Tactical HUD 1 Map Filters NONE Filters NONE Steam 1 RUN: 60d6a18d-8eb9-4939-bae8-439c23b2ead4